bitfinex/quotes_ETHUSD_20250628
["timestamp","ask_amount","ask_price","bid_price","bid_amount"]
[1751117208598,7.48149611,2426.5,2426.3,8.391]
[1751117211658,7.48149611,2426.5,2426.3,10.86389841]
[1751117212291,7.48149611,2426.5,2426.3,8.391]
[1751117217167,6.65859611,2426.5,2426.3,8.391]
[1751117217368,6.65859611,2426.5,2426.3,6.669]
[1751117219994,6.65859611,2426.5,2426.3,9.14185136]
[1751117220365,6.65859611,2426.5,2426.3,6.669]
[1751117223898,6.65859611,2426.5,2426.3,9.14189061]
[1751117225811,6.65859611,2426.5,2426.3,6.669]
[1751117226399,10.83566386,2426.5,2426.4,6.659]
[1751117226606,7.42929611,2426.5,2426.4,6.659]
[1751117226780,7.63489611,2426.5,2426.4,6.659]
[1751117228104,6.86419611,2426.5,2426.4,6.659]
[1751117228985,9.33698981,2426.5,2426.3,6.659]
[1751117229204,7.84214261,2426.5,2426.0,0.2056]
[1751117229369,7.84214261,2426.5,2425.9,0.001]
[1751117229370,15.79019881,2426.2,2425.9,0.001]
[1751117229573,6.65859611,2426.0,2425.9,0.001]
[1751117229800,6.65859611,2426.0,2425.9,6.662]
[1751117232385,6.65859611,2426.0,2425.9,0.001]
[1751117232586,6.65859611,2426.0,2425.9,6.662]
[1751117232904,6.65859611,2426.0,2425.9,6.661]
[1751117234523,6.65859611,2426.0,2425.9,0.001]
[1751117234724,6.65859611,2426.0,2425.9,6.66]
[1751117236019,6.65859611,2426.0,2425.9,0.001]
[1751117236218,20.66413264,2426.0,2425.9,0.001]
[1751117238689,23.52623013,2426.0,2425.9,0.001]
[1751117240148,30.20123013,2426.0,2425.9,0.001]
[1751117242342,30.20123013,2426.0,2425.6,0.002]
[1751117242343,0.8233,2425.7,2425.6,0.002]
[1751117242648,14.5275064,2425.7,2425.6,0.002]
[1751117242931,18.14213076,2425.7,2425.6,0.002]
[1751117244700,28.14213076,2425.7,2425.6,0.002]
[1751117245231,28.14213076,2425.7,2425.5,0.002]
[1751117245232,12.47361477,2425.6,2425.5,0.002]
[1751117245436,19.93141477,2425.6,2425.5,0.002]
[1751117246000,13.25651675,2425.5,2425.4,0.001]
[1751117246240,26.79053459,2425.5,2425.4,0.001]
[1751117255843,13.28512477,2425.1,2425.0,0.001]
[1751117256013,31.19681837,2425.1,2425.0,0.001]
[1751117256352,31.19681837,2425.1,2423.2,0.78]
[1751117256353,10.0,2424.5,2423.2,0.78]
[1751117256513,9.5206936,2423.8,2423.3,0.78]
[1751117256836,9.5206936,2423.8,2423.3,3.25590147]
[1751117257334,20.93518127,2424.1,2423.3,3.25590147]
[1751117257335,9.5206936,2424.2,2423.3,0.78]
[1751117257530,12.47504719,2424.2,2423.6,2.47559258]
[1751117257733,13.71066151,2424.3,2423.7,3.27446639]
[1751117257933,11.99566151,2424.3,2423.8,2.47544512]
[1751117258336,2.4752524,2424.0,2423.7,0.799]
[1751117258861,11.99586477,2424.1,2423.7,0.799]
[1751117259020,9.5206936,2424.1,2423.7,0.799]
[1751117259835,9.5206936,2424.1,2423.7,3.27449604]
[1751117260117,9.5206936,2424.1,2423.7,0.799]
[1751117260319,11.99591999,2424.1,2423.7,0.799]
[1751117262133,9.5206936,2424.1,2423.7,0.799]
[1751117262459,9.5206936,2424.1,2423.7,3.27454417]
[1751117263547,13.71065222,2424.3,2423.7,3.2745148]
[1751117264123,2.47504596,2424.2,2423.7,3.2745148]
[1751117264446,23.71068793,2424.3,2423.8,2.47542929]
[1751117265025,21.2356936,2424.3,2423.8,2.47542929]
[1751117265562,21.2356936,2424.3,2423.9,2.4753477]
[1751117266257,21.2356936,2424.3,2423.8,2.4753998]
[1751117266461,0.2056,2424.2,2423.8,2.4753998]
[1751117266962,0.2056,2424.2,2424.0,3.23393956]
[1751117267167,10.2056,2424.3,2424.0,3.23393956]
[1751117268152,10.2056,2424.3,2424.0,0.7587]
[1751117268550,10.2056,2424.3,2424.0,3.23394357]
[1751117269082,10.2056,2424.3,2424.0,0.7587]
[1751117271966,0.2056,2424.3,2424.0,3.23393459]
[1751117272137,0.2056,2424.3,2424.0,0.7587]
[1751117272867,0.2056,2424.3,2424.0,3.2339361]
[1751117273470,0.2056,2424.3,2424.0,0.7587]
[1751117273673,9.5206936,2424.1,2424.0,0.7587]
[1751117274137,9.5206936,2424.1,2423.9,0.2056]
[1751117279566,2.47510847,2424.2,2423.9,0.2056]
[1751117280880,11.9958903,2424.1,2423.9,0.2056]
[1751117281177,11.9958903,2424.1,2423.8,0.8036]
[1751117281583,2.47525036,2424.0,2423.8,0.8036]
[1751117281746,9.5206936,2424.1,2423.8,0.8036]
[1751117281747,11.99589317,2424.1,2423.8,0.8036]
[1751117281947,9.5206936,2424.1,2423.8,0.8036]
[1751117282655,2.6807054,2424.2,2423.8,0.8036]
[1751117282975,2.47515546,2424.1,2423.8,0.8036]
[1751117283760,4.22952337,2424.2,2423.8,0.8036]
[1751117286681,2.68068656,2424.2,2423.8,0.8036]
[1751117288249,2.47515029,2424.1,2423.8,0.8036]
[1751117288978,2.47527221,2424.0,2423.8,0.8036]
[1751117289962,11.99585787,2424.1,2423.8,0.8036]
[1751117290361,2.4752515,2424.0,2423.8,0.8036]
[1751117291183,11.99588989,2424.1,2423.8,0.8036]
[1751117291349,9.5206936,2424.1,2423.8,0.8036]
[1751117291556,11.99584831,2424.1,2423.8,0.8036]
[1751117292372,2.47526682,2424.0,2423.8,0.8036]
[1751117292701,2.47526682,2424.0,2423.7,0.2056]
[1751117293089,11.99589712,2424.1,2423.7,0.2056]
[1751117293395,2.47525993,2424.0,2423.7,0.2056]
[1751117293781,11.99588884,2424.1,2423.7,0.2056]
[1751117296005,11.99588884,2424.1,2423.7,2.68114595]
[1751117296304,2.47519524,2424.1,2423.7,0.2056]
[1751117297700,2.47519524,2424.1,2423.7,2.68114506]
[1751117297886,2.47515162,2424.1,2423.7,2.68114506]
[1751117298088,2.47515162,2424.1,2423.7,0.2056]
[1751117298809,2.47529407,2424.0,2423.7,6.9166]
[1751117299515,23.46352735,2424.1,2423.7,6.9166]
[1751117299692,2.47526012,2424.0,2423.7,6.9166]
[1751117301218,2.47526012,2424.0,2423.6,6.9146]
[1751117301421,2.47526012,2424.0,2423.6,9.39024451]
[1751117301595,23.46352723,2424.1,2423.6,9.39024451]
[1751117302531,11.46764296,2424.1,2423.7,2.47554984]
[1751117302682,10.2056,2424.2,2423.8,2.47544141]
[1751117304285,12.68065289,2424.2,2423.8,0.796]
[1751117306417,10.2056,2424.2,2423.8,0.796]
[1751117306632,10.2056,2424.2,2423.8,3.27137609]
[1751117309236,10.2056,2424.2,2423.9,2.47529301]
[1751117309237,0.2056,2424.2,2423.9,2.47529301]
[1751117309726,0.2056,2424.2,2423.8,3.47700854]
[1751117310498,10.2056,2424.2,2423.8,3.47700854]
[1751117311214,0.2056,2424.2,2423.9,2.47533986]
[1751117312137,12.47488339,2424.4,2423.9,2.47533986]
[1751117312138,10.0,2424.4,2424.0,2.47523227]
[1751117312334,0.2056,2424.4,2424.0,2.47523227]
[1751117312500,0.2056,2424.4,2424.1,3.28829115]
[1751117313003,0.2056,2424.4,2424.2,2.475015]
[1751117313445,0.2056,2424.5,2424.2,2.475015]
[1751117313602,0.2056,2424.5,2424.2,2.47499447]
[1751117314210,0.2056,2424.5,2424.3,2.47492751]
[1751117315948,0.2056,2424.5,2424.2,3.02496973]
[1751117316151,2.68003559,2424.8,2424.4,0.2056]
[1751117316353,2.92465666,2424.8,2424.4,2.6804383]
[1751117317439,2.92465666,2424.8,2424.4,2.68037333]
[1751117318340,0.2056,2424.8,2424.4,2.68037333]
[1751117318541,0.2056,2424.8,2424.5,2.47473556]
[1751117318933,0.2056,2424.8,2424.4,2.68039456]
[1751117320142,2.68004427,2424.8,2424.4,0.2056]
[1751117320545,0.2056,2424.8,2424.4,0.2056]
[1751117320747,2.68009641,2424.8,2424.4,0.2056]
[1751117321112,3.45229641,2424.8,2424.4,0.2056]
[1751117322049,12.97299001,2424.8,2424.4,0.2056]
[1751117323748,12.97299001,2424.8,2424.4,2.68042897]
[1751117324052,10.4984936,2424.8,2424.4,2.68042897]
[1751117326025,0.2056,2424.8,2424.4,2.68042897]
[1751117328363,2.75441988,2424.8,2424.4,2.68042897]
[1751117330459,2.75441988,2424.8,2424.5,2.47472902]
[1751117330637,0.2056,2424.8,2424.5,2.47472902]
[1751117333059,2.68003323,2424.8,2424.4,2.68039314]
[1751117333655,2.68003323,2424.8,2424.4,0.2056]
[1751117333861,2.68003323,2424.8,2424.4,2.68043037]
[1751117334160,0.2056,2424.8,2424.4,2.68043037]
[1751117334459,2.68004044,2424.8,2424.4,2.68043037]
[1751117335062,0.2056,2424.8,2424.4,2.68043037]
[1751117339860,2.68004083,2424.8,2424.4,0.2056]
[1751117340060,5.22888259,2424.8,2424.4,0.2056]
[1751117340572,10.3405936,2424.7,2424.4,0.2056]
[1751117340729,9.5206936,2424.5,2424.4,0.2056]
[1751117341046,9.5206936,2424.5,2424.2,2.47498655]
[1751117341251,9.5206936,2424.5,2424.2,2.68058655]
[1751117341764,9.5206936,2424.5,2424.2,0.2056]
[1751117344469,11.99543274,2424.5,2424.2,0.2056]
[1751117344668,13.29752601,2424.5,2424.2,0.2056]
[1751117344871,0.8199,2424.4,2424.2,0.2056]
[1751117345083,13.29752601,2424.5,2423.8,1.717]
[1751117345084,0.8199,2424.2,2423.8,1.717]
[1751117345375,0.8199,2424.2,2423.3,2.47592775]
[1751117345376,0.8199,2424.2,2423.9,0.2056]
[1751117347075,3.29499392,2424.2,2423.9,0.2056]
[1751117348637,0.2056,2424.3,2423.9,0.2056]
[1751117348838,0.8199,2424.7,2424.0,0.55]
[1751117349044,0.8199,2424.7,2424.5,2.47471368]
[1751117349350,0.8199,2424.7,2424.5,2.68032483]
[1751117349880,2.766617,2424.8,2424.5,2.68032483]
[1751117350973,1.0255,2424.9,2424.5,2.68032483]
[1751117350974,3.499829,2424.9,2424.5,0.2056]
[1751117351180,15.40958907,2424.9,2424.5,0.2056]
[1751117351672,15.40958907,2424.9,2424.4,2.47479507]
[1751117351673,15.20398907,2424.9,2424.4,2.47479507]
[1751117351877,0.2056,2424.8,2424.4,2.47479507]
[1751117357281,9.5206936,2424.7,2424.3,2.68050503]
[1751117357779,11.99523796,2424.7,2424.3,0.2056]
[1751117357986,3.25757744,2424.6,2424.3,0.2056]
[1751117358173,3.25757744,2424.6,2424.1,2.47511898]
[1751117358480,3.46317744,2424.6,2424.2,0.2056]
[1751117358684,0.9885,2424.6,2424.2,0.2056]
[1751117358861,11.99548748,2424.5,2424.2,0.2056]
[1751117359577,0.7829,2424.3,2423.9,2.68090835]
[1751117360483,0.7829,2424.3,2424.0,2.47524672]
[1751117361592,0.7829,2424.3,2424.1,2.47513407]
[1751117361887,0.7829,2424.3,2423.8,7.4493]
[1751117361888,0.9885,2424.6,2424.3,2.47494122]
[1751117362766,0.9885,2424.6,2424.4,2.47482472]
[1751117363153,7.96,2424.7,2424.1,3.2504239]
[1751117363468,7.96,2424.7,2424.5,2.4746758]
[1751117364391,7.96,2424.7,2424.4,2.47479795]
[1751117365498,7.96,2424.7,2424.3,2.6804667]
[1751117366491,3.26874524,2424.7,2424.3,2.6804667]
[1751117366894,8.1656,2424.8,2424.3,0.2056]
[1751117367059,8.1656,2424.8,2424.5,2.47468384]
[1751117368769,7.96,2424.8,2424.6,2.47463239]
[1751117370283,7.96,2424.8,2424.5,3.47370454]
[1751117370686,7.96,2424.8,2424.5,2.68030454]
[1751117371084,1.0153,2424.9,2424.8,2.47443088]
[1751117371288,0.002,2425.2,2425.0,2.47416188]
[1751117371485,0.002,2425.2,2425.1,2.47412477]
[1751117381210,0.002,2425.2,2425.1,2.67972477]
[1751117383377,0.002,2425.2,2425.1,0.2056]
[1751117383881,0.002,2425.2,2424.7,9.14345163]
[1751117383882,3.29522539,2425.2,2424.7,9.14345163]
[1751117384104,5.03000242,2425.2,2424.8,0.2056]
[1751117387408,2.55597703,2425.2,2424.8,2.68002209]
[1751117387912,5.03001176,2425.2,2424.8,0.2056]
[1751117388281,2.55597703,2425.2,2424.8,2.68001339]
[1751117389123,2.55597703,2425.2,2424.9,2.47431135]
[1751117389283,0.2076,2425.2,2424.9,2.47431135]
[1751117394283,0.2076,2425.2,2424.8,2.67997282]
[1751117396616,2.6816271,2425.2,2424.8,0.2056]
[1751117397197,0.765,2425.1,2424.8,0.2056]
[1751117397413,10.2856936,2425.1,2424.8,0.2056]
[1751117397598,1.29673207,2425.0,2424.8,0.2056]
[1751117397927,2.47424525,2425.0,2424.8,0.2056]
[1751117398793,2.47424525,2425.0,2424.5,9.14168584]
[1751117398794,0.2056,2424.9,2424.5,9.14168584]
[1751117399189,0.2056,2424.9,2424.6,2.47461744]
[1751117399585,0.9706,2425.1,2424.8,2.47443088]
[1751117399792,0.9706,2425.1,2424.9,2.47431879]
[1751117400382,0.002,2425.2,2425.0,2.4742268]
[1751117400500,0.002,2425.2,2425.1,2.47412477]
[1751117400715,0.002,2425.2,2425.1,2.67972477]
[1751117401224,0.002,2425.2,2425.1,0.2056]
[1751117401225,0.767,2425.2,2425.1,0.2056]
[1751117401396,0.767,2425.2,2424.9,6.8736]
[1751117401397,5.06602369,2425.2,2424.9,6.8736]
[1751117401791,2.47413914,2425.1,2424.9,6.8736]
[1751117402201,11.99483274,2425.1,2424.9,0.2056]
[1751117402433,11.99483274,2425.1,2424.7,0.2056]
[1751117403934,9.5206936,2425.1,2424.7,2.68013236]
[1751117405036,9.5206936,2425.1,2424.8,2.47439921]
[1751117405224,2.79756936,2425.2,2424.8,2.47439921]
[1751117405225,5.27159419,2425.2,2424.8,2.47439921]
[1751117405532,5.27159419,2425.2,2424.7,2.68005421]
[1751117406404,1.72682112,2425.1,2424.7,2.68005421]
[1751117406603,4.20094938,2425.1,2424.7,2.68005421]
[1751117407737,4.20094938,2425.1,2424.7,0.2056]
[1751117409434,2.47427652,2425.0,2424.7,0.2056]
[1751117409808,0.7624,2424.9,2424.7,0.2056]
[1751117410210,3.23673497,2424.9,2424.7,0.2056]
[1751117410538,4.93257328,2424.9,2424.4,9.14078534]
[1751117410845,4.93257328,2424.9,2424.5,0.2056]
[1751117410846,3.44233497,2424.9,2424.5,0.2056]
[1751117411219,3.44233497,2424.9,2424.5,2.68033572]
[1751117411539,3.44233497,2424.9,2424.5,0.2056]
[1751117411741,2.47443177,2424.8,2424.5,0.2056]
[1751117412943,0.7952,2424.7,2424.5,0.2056]
[1751117419056,0.7952,2424.7,2424.5,2.68032313]
[1751117419265,1.0008,2424.9,2424.6,2.47463499]
[1751117419733,6.44130167,2424.9,2424.5,2.6802884]
[1751117420544,6.44130167,2424.9,2424.5,0.2056]
[1751117421553,2.47446777,2424.8,2424.5,0.2056]
[1751117421734,6.44134136,2424.9,2424.5,0.2056]
[1751117422624,2.47444467,2424.8,2424.5,0.2056]
[1751117422932,11.89156758,2424.8,2424.5,0.2056]
[1751117423243,2.47463499,2424.6,2424.3,0.2056]
[1751117423851,2.47474714,2424.5,2424.3,0.2056]
[1751117424054,2.47474714,2424.5,2424.0,9.13720513]
[1751117424235,2.47474714,2424.5,2424.1,0.2056]
[1751117424236,0.812,2424.4,2424.1,0.2056]
[1751117424634,3.63607404,2424.4,2424.1,0.2056]
[1751117425049,1.16123471,2424.4,2424.1,0.2056]
[1751117425249,9.5206936,2424.2,2423.8,0.7651]
[1751117425557,1.36683471,2424.4,2424.0,2.47519386]
[1751117425730,3.49244746,2424.4,2423.9,2.68090373]
[1751117426059,3.49244746,2424.4,2423.9,0.2056]
[1751117426555,3.49244746,2424.4,2423.9,2.68094037]
[1751117426761,1.0176,2424.4,2423.9,2.68094037]
[1751117426923,1.0176,2424.4,2424.0,2.47522432]
[1751117427130,0.812,2424.4,2424.0,0.2056]
[1751117427456,2.47511148,2424.2,2424.0,0.2056]
[1751117427660,0.812,2424.1,2424.0,0.2056]
[1751117428028,3.28714541,2424.1,2423.6,0.7651]
[1751117428229,2.47525259,2424.0,2423.7,0.2056]
[1751117428429,3.4927965,2424.1,2423.7,0.2056]
[1751117428828,1.0176,2424.1,2423.7,2.68114151]
[1751117429030,1.0176,2424.1,2423.7,0.2056]
[1751117429448,3.49282202,2424.1,2423.7,0.2056]
[1751117430265,1.0176,2424.1,2423.7,0.2056]
[1751117430559,1.0176,2424.1,2423.8,2.47542887]
[1751117430760,0.2056,2424.1,2423.7,0.9604]
[1751117430925,0.7509,2424.6,2424.0,2.47518147]
[1751117431129,0.2056,2424.4,2424.0,2.68078147]
[1751117431760,3.22558348,2424.6,2424.0,3.22998147]
[1751117431964,3.43118348,2424.6,2424.2,0.2056]
[1751117432160,2.4747579,2424.5,2424.2,0.2056]
[1751117432463,3.43117877,2424.6,2424.2,0.2056]
[1751117433066,2.47474994,2424.5,2424.2,0.2056]
[1751117433364,0.2056,2424.5,2424.1,2.68072358]
[1751117433860,0.2056,2424.5,2424.2,2.4750411]
[1751117434263,0.2056,2424.5,2424.1,2.68070855]
[1751117434961,0.2056,2424.5,2424.2,2.47502435]
[1751117435267,0.2056,2424.5,2424.1,2.6806857]
[1751117435468,10.2056,2424.5,2424.1,2.6806857]
[1751117437167,0.2056,2424.5,2424.1,2.6806857]
[1751117445090,9.7262936,2424.5,2424.1,0.2056]
[1751117445245,2.47490021,2424.4,2424.1,0.2056]
[1751117447375,2.47504331,2424.2,2423.9,0.2056]
[1751117447585,2.47504331,2424.2,2423.7,1.706]
[1751117447586,13.54518179,2424.1,2423.7,1.706]
[1751117447749,13.54518179,2424.1,2423.7,1.9116]
[1751117447750,13.75078179,2424.1,2423.7,1.9116]
[1751117447944,2.47525423,2424.0,2423.7,1.9116]
[1751117448776,3.28485423,2424.0,2423.7,0.2056]
[1751117448977,2.47545176,2423.8,2423.7,0.2056]
[1751117449198,2.47545176,2423.8,2423.4,0.001]
[1751117449199,3.28515921,2423.7,2423.4,0.001]
[1751117449858,0.8096,2423.7,2423.4,0.001]
[1751117450264,3.28517111,2423.7,2423.4,0.001]
[1751117451205,3.28516984,2423.7,2423.4,0.001]
[1751117451367,0.8096,2423.7,2423.4,0.001]
[1751117452403,2.68106843,2423.8,2423.5,2.47575352]
[1751117452404,0.2056,2423.8,2423.5,2.47575352]
[1751117452609,0.2056,2423.8,2423.4,2.47676022]
[1751117452919,0.2056,2423.8,2423.5,2.47575219]
[1751117455194,0.2056,2423.8,2423.6,2.47565156]
[1751117455499,0.2056,2423.8,2423.5,2.47570432]
[1751117455896,0.2056,2423.8,2423.4,2.47681271]
[1751117456090,1.55465521,2423.8,2423.4,2.47681271]
[1751117456279,4.03010796,2423.8,2423.4,0.001]
[1751117457416,2.47555671,2423.7,2423.4,0.001]
[1751117457926,4.03015899,2423.8,2423.4,0.001]
[1751117458121,1.43603281,2423.7,2423.4,0.001]
[1751117459523,3.91159086,2423.7,2423.4,0.001]
[1751117459981,1.43603281,2423.7,2423.4,0.001]
[1751117460687,3.91159592,2423.7,2423.4,0.001]
[1751117461089,0.7758,2423.6,2423.4,0.001]
[1751117461818,3.25145714,2423.6,2423.4,0.001]
[1751117462019,4.12320765,2423.6,2423.4,0.001]
[1751117462334,2.4757582,2423.5,2423.4,0.001]
[1751117462890,4.32886332,2423.6,2423.4,0.001]
[1751117463290,1.85315051,2423.6,2423.4,0.001]
[1751117464934,4.32881263,2423.6,2423.4,0.001]
[1751117465642,1.85315051,2423.6,2423.4,0.001]
[1751117467633,4.32881528,2423.6,2423.4,0.001]
[1751117468736,1.85315051,2423.6,2423.4,0.001]
[1751117473145,0.2056,2423.6,2423.4,0.001]
[1751117473307,0.8129,2423.9,2423.6,2.47565278]
[1751117473505,0.8129,2423.9,2423.5,0.2056]
[1751117473506,0.8129,2423.9,2423.5,2.6813089]
[1751117473706,0.8129,2423.9,2423.6,2.47565424]
[1751117474509,0.8129,2423.9,2423.5,2.68130826]
[1751117475475,0.8129,2423.9,2423.5,0.2056]
[1751117475609,4.74674493,2423.9,2423.5,0.2056]
[1751117475809,16.74287893,2423.9,2423.5,0.2056]
[1751117476509,14.26743853,2423.9,2423.5,0.2056]
[1751117476909,4.74674493,2423.9,2423.5,2.68134098]
[1751117477126,4.74674493,2423.9,2423.5,0.2056]
[1751117477325,4.74674493,2423.9,2423.5,2.68134653]
[1751117477552,4.74674493,2423.9,2423.5,0.2056]
[1751117480744,7.22211205,2423.9,2423.5,0.2056]
[1751117481112,4.74674493,2423.9,2423.5,0.2056]
[1751117482252,4.74674493,2423.9,2423.5,2.68132904]
[1751117482442,0.8129,2423.9,2423.5,2.68132904]
[1751117482755,10.2056,2424.0,2423.5,3.46972904]
[1751117483110,10.2056,2424.0,2423.6,2.4756531]
[1751117483349,10.2056,2424.0,2423.6,2.47561249]
[1751117484628,10.2056,2424.0,2423.5,3.46970486]
[1751117484949,10.2056,2424.0,2423.6,2.47564038]
[1751117485138,13.18188191,2424.0,2423.6,2.47564038]
[1751117485331,13.18188191,2424.0,2423.5,3.46969852]
[1751117486760,15.65713965,2424.0,2423.5,0.994]
[1751117487248,15.65713965,2424.0,2423.5,0.2056]
[1751117487416,15.65713965,2424.0,2423.5,2.68134802]
[1751117487620,13.18188191,2424.0,2423.5,2.68134802]
[1751117488565,3.38958742,2423.9,2423.5,0.2056]
[1751117489866,3.38958742,2423.9,2423.5,2.68135235]
[1751117490159,5.86495095,2423.9,2423.5,0.2056]
[1751117490366,3.38958742,2423.9,2423.5,0.2056]
[1751117491168,3.3035697,2423.8,2423.5,0.2056]
[1751117491348,14.30259942,2423.7,2423.4,0.001]
[1751117492572,2.47572318,2423.6,2423.4,0.001]
[1751117492972,23.82328361,2423.7,2423.4,0.001]
[1751117493592,2.4757582,2423.5,2423.4,0.001]
[1751117493739,25.41856109,2423.5,2423.4,0.001]
[1751117496243,32.07856109,2423.5,2423.4,0.001]
[1751117499272,40.03856109,2423.5,2423.4,0.001]
[1751117502609,30.51786749,2423.5,2423.4,0.001]
[1751117508172,30.51786749,2423.5,2422.3,0.2203736]
[1751117508173,2.47688243,2422.4,2422.3,0.2203736]
[1751117508358,21.61868243,2422.4,2422.3,0.2203736]
[1751117510095,22.62068243,2422.4,2422.3,0.2203736]
[1751117510258,21.62068243,2422.4,2422.3,0.2203736]
[1751117510459,24.03042911,2422.4,2422.3,0.2203736]
[1751117511195,15.63842911,2422.4,2422.3,0.2203736]
[1751117511394,24.03042911,2422.4,2422.3,0.2203736]
[1751117514168,31.99042911,2422.4,2422.3,0.2203736]
[1751117514791,32.99042911,2422.4,2422.3,0.2203736]
[1751117516006,32.98942911,2422.4,2422.3,0.2203736]
[1751117518206,24.59842911,2422.4,2422.3,0.2203736]
[1751117518513,33.00042911,2422.4,2422.3,0.2203736]
[1751117519711,24.59842911,2422.4,2422.3,0.2203736]
[1751117519880,33.00142911,2422.4,2422.3,0.2203736]
[1751117520080,27.361,2422.4,2422.3,0.2203736]
[1751117520298,15.645,2422.4,2422.3,0.2203736]
[1751117520606,17.96,2422.4,2422.3,0.2203736]
[1751117520808,17.96,2422.4,2422.3,0.9952736]
[1751117521008,18.1664,2422.4,2422.3,0.9952736]
[1751117521213,10.2064,2422.4,2422.3,0.9952736]
[1751117521382,0.2064,2422.4,2422.3,3.47225828]
[1751117522196,0.2064,2422.4,2422.3,0.9952736]
[1751117522792,0.2064,2422.4,2422.3,0.2203736]
[1751117524487,1.4747222,2422.4,2422.3,0.2203736]
[1751117524678,11.4747222,2422.4,2422.3,0.2203736]
[1751117524875,0.2064,2422.4,2422.3,0.2203736]
[1751117527181,2.68328243,2422.4,2422.3,0.2203736]
[1751117529599,0.2064,2422.4,2422.3,0.2203736]
[1751117532022,2.68328243,2422.4,2422.3,0.2203736]
[1751117532185,3.46998243,2422.4,2422.3,0.2203736]
[1751117532391,15.68582935,2422.4,2422.3,0.2203736]
[1751117534205,25.20652295,2422.4,2422.3,0.2203736]
[1751117537146,24.08982935,2422.4,2422.3,0.2203736]
[1751117537508,25.08982935,2422.4,2422.3,0.2203736]
[1751117537709,16.68582935,2422.4,2422.3,0.2203736]
[1751117538035,25.08982935,2422.4,2422.3,0.2203736]
[1751117538336,16.68582935,2422.4,2422.3,0.2203736]
[1751117538638,25.08982935,2422.4,2422.3,0.2203736]
[1751117539037,16.68582935,2422.4,2422.3,0.2203736]
[1751117539358,24.08882935,2422.4,2422.3,0.2203736]
[1751117539537,23.30212935,2422.4,2422.3,0.2203736]
[1751117543614,31.26212935,2422.4,2422.3,0.2203736]
[1751117543820,41.09566998,2422.4,2422.3,0.2203736]
[1751117544243,31.57497638,2422.4,2422.3,0.2203736]
[1751117546559,31.57497638,2422.4,2421.3,9.5216936]
[1751117546560,0.55,2422.0,2421.3,0.001]
[1751117546733,12.47790534,2421.4,2421.3,0.001]
[1751117547059,20.92990534,2421.4,2421.3,0.001]
[1751117549028,12.47790534,2421.4,2421.3,0.001]
[1751117549425,6.735,2421.4,2421.3,0.001]
[1751117550685,6.737,2421.4,2421.3,0.001]
[1751117553488,6.735,2421.4,2421.3,0.001]
[1751117554186,6.734,2421.5,2421.3,0.001]
[1751117556802,0.2064,2421.6,2421.3,2.47897538]
[1751117557005,6.731,2421.5,2421.3,2.47897538]
[1751117557182,0.2064,2421.6,2421.3,2.47897538]
[1751117557183,0.2064,2421.6,2421.4,2.47790534]
[1751117557383,0.2064,2421.6,2421.4,3.2835793]
[1751117557582,16.732,2421.9,2421.4,0.8057]
[1751117557766,0.2064,2421.8,2421.4,3.48995844]
[1751117558281,0.2064,2421.8,2421.5,0.7944]
[1751117558483,2.47713669,2422.2,2421.8,0.7944]
[1751117558484,0.2064,2422.0,2421.8,0.7944]
[1751117560308,0.2064,2422.0,2421.8,3.27183128]
[1751117560814,0.2064,2422.0,2421.9,2.47739378]
[1751117560973,0.2064,2422.0,2421.8,3.27185131]
[1751117561918,0.2064,2422.0,2421.8,0.7944]
[1751117564139,0.2064,2422.0,2421.8,3.27187908]
[1751117564782,0.2064,2422.0,2421.8,0.7944]
[1751117566131,2.47756814,2421.8,2421.3,2.47897075]
[1751117566345,2.68396814,2421.8,2421.4,0.8261]
[1751117566514,2.47756814,2421.8,2421.4,0.8261]
[1751117566720,0.2064,2421.7,2421.4,0.8261]
[1751117567326,0.2064,2421.7,2421.4,3.30399226]
[1751117567733,0.2064,2421.7,2421.5,2.47773914]
[1751117567907,0.2064,2421.7,2421.4,3.30395649]
[1751117568738,0.2064,2421.7,2421.4,2.47785649]
[1751117568939,0.2064,2421.7,2421.3,2.68532264]
[1751117569714,0.2064,2421.7,2421.4,2.47789095]
[1751117570947,0.2064,2421.7,2421.5,2.47778604]
[1751117571145,0.2064,2421.7,2421.4,2.47786581]
[1751117571525,0.2064,2421.7,2421.4,2.47790534]
[1751117571921,3.30237896,2422.1,2421.5,2.47771457]
[1751117572123,0.2064,2421.9,2421.6,0.8261]
[1751117572450,0.2064,2421.9,2421.7,2.4775486]
[1751117573116,2.47710602,2422.2,2421.7,2.4775486]
[1751117573446,0.2064,2422.0,2421.7,2.4775486]
[1751117573664,0.2064,2422.0,2421.6,3.510174]
[1751117573962,0.2064,2422.0,2421.7,2.47753625]
[1751117574116,0.2064,2422.0,2421.8,2.4774942]
[1751117574319,0.2064,2422.0,2421.7,2.47754391]
[1751117575359,0.2064,2422.0,2421.6,3.51014515]
[1751117578749,2.47713901,2422.2,2421.7,2.47759405]
[1751117578958,10.0,2422.1,2421.7,2.47759405]
[1751117579257,12.47720008,2422.1,2421.6,3.30375451]
[1751117581661,10.0,2422.1,2421.7,2.47756129]
[1751117583834,12.47719065,2422.1,2421.7,2.47756129]
[1751117584036,10.0,2422.1,2421.7,2.47756129]
[1751117586472,2.47714299,2422.2,2421.8,2.47748203]
[1751117586673,10.0,2422.2,2421.8,2.47748203]
[1751117587657,10.0,2422.2,2421.7,2.47751748]
[1751117587865,12.47709081,2422.2,2421.7,2.47751748]
[1751117588745,0.2064,2422.0,2421.7,2.47751748]
[1751117588939,0.2064,2422.0,2421.8,2.47747619]
[1751117589142,0.2064,2422.0,2421.9,2.47739378]
[1751117590044,0.2064,2422.0,2421.9,3.23369378]
[1751117590279,10.0,2422.2,2421.9,0.7563]
[1751117590489,10.2064,2422.2,2421.9,0.7563]
[1751117591355,10.2064,2422.2,2421.9,3.23368334]
[1751117592379,0.2064,2422.2,2421.9,3.23368334]
[1751117593879,0.2064,2422.2,2422.1,2.47718921]
[1751117594080,0.2064,2422.2,2422.0,2.47719905]
[1751117594284,0.7694,2422.5,2422.0,2.47719905]
[1751117594285,0.2064,2422.4,2422.0,2.47719905]
[1751117596915,2.68329647,2422.4,2421.9,3.44004541]
[1751117598195,2.47648486,2422.8,2421.5,11.99847388]